Cogmind - Beta 13 @@@ ROGUE MODE // 2024.04.02 @ 09:31:47 Player: Scringis Result: Destroyed by D-53 Grenadier with Mini Grenade Launcher Performance ------------- Evolutions (0) 0 Regions Visited (2) 400 Robots Destroyed (14) 70 Value Destroyed (471) 471 Prototype IDs (2) 40 Alien Tech Used (0) 0 Bonus (42) 42 TOTAL SCORE: 1023 Bonus ------- Follower Combat Kills 42 Cogmind --------- Core Integrity 0/250 Matter 179/300 Energy 100/100 System Corruption 0% Temperature Cool (0) Movement Core (1400) Ox27 Location -10/Mines Parts ------- > --- POWER (1) -------- (None) > --- PROPULSION (2) --- (None) > --- UTILITY (2) ------ Huge Storage Unit Targeting Computer > --- WEAPON (2) ------- Beam Cannon > --- INVENTORY (25) --- Medium Matter Pod (100) Sensor Array Targeting Computer Targeting Computer Targeting Computer ECM Suite Light Armor Plating Particle Gun Light Assault Rifle Peak State ------------ > --- POWER ------------ Light Nuclear Core > --- PROPULSION ------- Aluminum Leg Aluminum Leg > --- UTILITY ---------- Huge Storage Unit Targeting Computer > --- WEAPON ----------- Particle Gun Light Assault Rifle > --- INVENTORY -------- Medium Matter Pod Sensor Array Targeting Computer Targeting Computer Targeting Computer ECM Suite Light Armor Plating Beam Cannon Light Assault Rifle Grenade Launcher [Rating: 11] Favorites ----------- Power Ion Engine Engine Ion Engine Power Core Light Nuclear Core Propulsion Aluminum Leg Treads Light Treads Leg Aluminum Leg Utility Targeting Computer Storage Huge Storage Unit Processor Targeting Computer Protection Light Armor Plating Weapon Light Assault Rifle Energy Gun Medium Laser Energy Cannon Beam Cannon Ballistic Gun Light Assault Rifle Launcher Grenade Launcher Build | -11 -10 -10 ------- Run | Yrd Mat Min Slots Evolved . | . . . Power . | . . . Propulsion . | . . . Utility . | . . . Weapon . | . . . Parts Attached 24 | 6 11 7 Power 4 | 1 2 1 Engine 2 | 1 1 . Core 2 | . 1 1 Reactor . | . . . Propulsion 5 | 2 2 1 Treads 2 | 2 . . Leg 3 | . 2 1 Wheel . | . . . Hover . | . . . Flight . | . . . Utility 5 | 1 4 . Device . | . . . Storage 3 | 1 2 . Processor 1 | . 1 . Hackware . | . . . Protection 1 | . 1 . Artifact . | . . . Weapon 10 | 2 3 5 Energy Gun 3 | 1 1 1 Energy Cannon 1 | . . 1 Ballistic Gun 4 | 1 2 1 Ballistic Cannon . | . . . Launcher 2 | . . 2 Special Weapon . | . . . Impact Weapon . | . . . Slashing Weapon . | . . . Piercing Weapon . | . . . Special Melee Weapon . | . . . Unidentified Prototypes . | . . . Parts Lost 11 | . 4 7 Power 3 | . 1 2 Propulsion 5 | . 2 3 Utility . | . . . Weapon 3 | . 1 2 Highest Loss Streak 3 | . 1 3 To Critical Strikes . | . . . Average Slot Usage (%) 94 | . 94 94 Engine 13 | . 13 11 Treads 8 | . 10 . Leg 15 | . 12 25 Storage 14 | . 14 14 Processor 13 | . 13 14 Energy Gun 7 | . 9 . Ballistic Gun 19 | . 18 23 Naked Turns . | . . . Heaviest Build 89 | 11 88 89 Greatest Support 40 | 40 40 20 Greatest Overweight (x) 29 | . 29 8 Average Overweight (x) 2 | . 1 4 Largest Inventory Capacity 25 | 8 25 25 Average Capacity 20 | 6 19 25 Most Carried 11 | 3 11 10 Average Carried 8 | 1 8 9 Final Capacity 25 | 8 25 25 Final Carried 9 | 2 9 9 Class Distribution -------------------- 100% | Mutant Dominant Class ---------------- Mutant | -10/Materials Mutant | -10/Mines Resources | -11 -10 -10 ----------- Run | Yrd Mat Min Matter Collected 533 | 239 249 45 Remotely . | . . . Salvage Created 465 | . 376 89 Parts 24 | . 21 3 Haulers Intercepted . | . . . Recyclers Shooed . | . . . Parts Field Recycled . | . . . Retrieved Matter . | . . . Parts Self-Destructed . | . . . Prevented . | . . . Kills | -11 -10 -10 ------- Run | Yrd Mat Min Combat Hostiles Destroyed 14 | . 11 3 Guns 12 | . 11 1 Cannons 1 | . . 1 AOE 1 | . . 1 Classes Destroyed 4 | . 2 2 Swarmer 3 | . 3 . Grunt 8 | . 8 . Sentry 2 | . . 2 Demolisher 1 | . . 1 Best Kill Streak 3 | . 3 2 Combat Bots Only 3 | . 3 2 Max Kills in Single Turn 2 | . 2 1 Gunslinging . | . . . Exploded 1 | . . 1 Melee . | . . . Uniques/NPCs Destroyed . | . . . Combat | -11 -10 -10 -------- Run | Yrd Mat Min Hostile Shots Fired 107 | . 71 36 Missed 24 | . 20 4 Damage Taken 1351 | . 659 692 Core 261 | . 115 146 Absorbed by Shields . | . . . Core Remaining (%) 100 | 100 . . Volleys Fired 64 | . 46 18 Largest 2 | . 2 2 Hottest 90 | . 70 90 Shots Fired 125 | . 92 33 Gun 106 | . 92 14 Cannon 9 | . . 9 Launcher 10 | . . 10 Special . | . . . Kinetic 75 | . 61 14 Thermal 40 | . 31 9 Explosive 10 | . . 10 Electromagnetic . | . . . Robot Hit Streak 14 | . 10 14 Robot Miss Streak 3 | . 3 2 Penetration Max . | . . . Secondary Targets 1 | . 1 . Max Gunslinging Chain 1 | . 1 . Shots Hit Robots 79 | . 54 25 Core Hits 36 | . 24 12 Critical Kills . | . . . Critical Parts Destroyed 1 | . 1 . Critical Strikes 3 | . 3 . Burn 2 | . 2 . Destroy 1 | . 1 . Melee Attacks . | . . . Impact . | . . . Slashing . | . . . Piercing . | . . . Sneak Attacks . | . . . Combat Hostiles . | . . . Follow-up Attacks . | . . . Damage Inflicted 858 | 9 567 282 Guns 657 | . 558 99 Cannons 69 | . . 69 Explosions 114 | . . 114 Melee . | . . . Ramming 18 | 9 9 . Kinetic 405 | . 306 99 Thermal 321 | . 252 69 Explosive 114 | . . 114 Electromagnetic . | . . . Impact . | . . . Slashing . | . . . Piercing . | . . . Highest Corruption . | . . . Average Corruption . | . . . Corruption Purged . | . . . Corruption Blocked . | . . . Overload Shots . | . . . Overflow Damage 2 | . . 2 Projectiles . | . . . Explosions 2 | . . 2 Melee . | . . . Knockbacks . | . . . Impact . | . . . Kinetic . | . . . Secondary . | . . . Self-Inflicted Damage 24 | . . 24 Shots 1 | . . 1 Rammed 1 | 1 . . Targets Rammed 3 | 1 2 . Kicked 2 | . 2 . Crushed . | . . . Highest Temperature 248 | . 248 216 Average Temperature 92 | . 92 93 Received Heat Transfer 402 | . 312 90 Siege Activations . | . . . Robots Corrupted . | . . . Combat Hostiles . | . . . Parts Fried . | . . . Impact Corruptions . | . . . Robots Melted . | . . . Combat Hostiles . | . . . Parts Melted 3 | . 2 1 Heat Transferred 1036 | . 888 148 Parts Sabotaged . | . . . Parts Stolen . | . . . Parts Stripped . | . . . Power Chain Reactions . | . . . Alert | -11 -10 -10 ------- Run | Yrd Mat Min Peak Influence 177 | . 160 177 Initial 15 | . . 15 Average 43 | . 41 56 Maximum Alert Level . | . . . Low Security (%) 100 | 100 100 100 Level 1 . | . . . Level 2 . | . . . Level 3 . | . . . Level 4 . | . . . Level 5 . | . . . High Security . | . . . Max Security . | . . . Squads Dispatched 3 | . 3 . Investigation . | . . . Extermination . | . . . Reinforcement 3 | . 3 . Assault . | . . . Garrison . | . . . Intercept . | . . . Searches Triggered . | . . . Construction Impeded . | . . . Haulers Reinforced . | . . . Active Scanning Responses . | . . . Cargo Convoy Interrupts . | . . . Stealth | -11 -10 -10 --------- Run | Yrd Mat Min Distress Signals 2 | . 2 . Communications Jammed . | . . . Distress Signals . | . . . Times Spotted 43 | . 32 11 Peak Tracking Total 3 | . 3 3 Tactical Retreats 4 | . 3 1 Traps | -11 -10 -10 ------- Run | Yrd Mat Min Traps Triggered 1 | . 1 . Indirectly . | . . . Trap Hack Attempts . | . . . Triggered . | . . . Disarmed . | . . . Reprogrammed . | . . . Reused . | . . . Traps Extracted . | . . . Installed . | . . . Triggered . | . . . Machines | -11 -10 -10 ---------- Run | Yrd Mat Min Machines Disabled 1 | . . 1 Max in Single Turn 1 | . . 1 Machines Repaired . | . . . Machines Dismantled . | . . . Machines Sabotaged . | . . . Overloaded Fab Kills . | . . . Hacking | -11 -10 -10 --------- Run | Yrd Mat Min Machines Accessed 5 | . 5 . Terminals 4 | . 4 . Fabricators . | . . . Repair Stations . | . . . Recycling Units 1 | . 1 . Scanalyzers . | . . . Garrison Access . | . . . Total Hacks 7 | . 7 . Successful 4 | . 4 . Failed 3 | . 3 . Catastrophic 1 | . 1 . Database Lockouts . | . . . Manual . | . . . Terminals 6 | . 6 . Fabricators . | . . . Repair Stations . | . . . Recycling Units 1 | . 1 . Scanalyzers . | . . . Garrison Access . | . . . Terminal Hacks 3 | . 3 . Prototype ID Bank 1 | . 1 . Maintenance Status 1 | . 1 . Hauler Manifests 1 | . 1 . Fabricator Hacks . | . . . Repair Station Hacks . | . . . Recycling Unit Hacks 1 | . 1 . Report Inventory 1 | . 1 . Scanalyzer . | . . . Garrison Access Hacks . | . . . Unauthorized Hacks . | . . . Terminals . | . . . Fabricators . | . . . Repair Stations . | . . . Recycling Units . | . . . Scanalyzers . | . . . Garrison Access . | . . . Data Cores Recovered . | . . . Used . | . . . Hacking Detections 2 | . 2 . Full Trace Events 1 | . 1 . Feedback Events . | . . . Feedback Blocked . | . . . Robot Schematics Acquired . | . . . Robots Built . | . . . Authchips . | . . . Time . | . . . Total Robot Build Rating . | . . . Part Schematics Acquired . | . . . Parts Built . | . . . Authchips . | . . . Time . | . . . Total Part Build Rating . | . . . Parts Repaired . | . . . Time . | . . . Parts Recycled . | . . . Recycled Matter . | . . . Retrieved Matter . | . . . Retrieved Components . | . . . Parts Scanalyzed . | . . . Part Schematics Acquired . | . . . Parts Damaged . | . . . Bothacking | -11 -10 -10 ------------ Run | Yrd Mat Min Used RIF Installer . | . . . Robots Hacked . | . . . Non-combat . | . . . Combat . | . . . Robot Hacks Applied . | . . . Relay Couplers Released . | . . . Fabnet Peak Effective % . | . . . Robots Rewired . | . . . Allies Hacked . | . . . Hacks Repelled . | . . . Allies | -11 -10 -10 -------- Run | Yrd Mat Min Total Allies 3 | . . 3 Largest Group 3 | . . 3 Highest-Rated Group 40 | . . 40 Highest-Rated Ally 16 | . . 16 Total Orders . | . . . Ally Attacks 30 | . . 30 Total Damage 255 | . . 255 Kills 6 | . . 6 Allies Corrupted . | . . . Allies Melted . | . . . Intel | -11 -10 -10 ------- Run | Yrd Mat Min Robot Analysis Total . | . . . Derelict Logs Recovered 1 | . . 1 Drone Launches . | . . . Drone Recoveries . | . . . Exploration | -11 -10 -10 ------------- Run | Yrd Mat Min Turns Passed 3720 | 100 2882 738 Spaces Moved 1186 | 64 966 156 Core 16 | 15 1 . Treads 698 | 49 649 . Legs 472 | . 316 156 Wheels . | . . . Hover . | . . . Flight . | . . . Fastest Speed 50 | 50 160 400 Average Speed 285 | 134 273 417 Slowest Speed 1500 | 160 1500 680 Overloaded Moves . | . . . Propulsion Burnouts . | . . . Robots Hopped . | . . . Cave-ins Triggered . | . . . Exploration Rate (%) 46 | 4 96 40 Regions Visited 2 Branch Regions 1 Pre-discovered Areas 1 | . . 1 Known Exits Taken . | . . . Unknown Exits Taken 2 | 1 1 . Scrap Searched 1 | . . 1 Spaces Dug . | . . . Terrain Destroyed 40 | . . 40 Melee . | . . . Projectile . | . . . AOE 40 | . . 40 Terrain Rammed . | . . . Walls Destroyed . | . . . Machines Disabled . | . . . Actions | -11 -10 -10 --------- Run | Yrd Mat Min Total 1412 | 78 1119 215 Wait 103 | . 75 28 Move 1185 | 64 965 156 Hop . | . . . Pick Up 28 | 8 16 4 Fast Attach . | . . . Attach 15 | 6 5 4 Detach 1 | . . 1 Swap 9 | . 6 3 Drop 5 | . 4 1 Fire 64 | . 46 18 Melee . | . . . Ram . | . . . Kick 2 | . 2 . Crush . | . . . Escape Stasis . | . . . Rewire . | . . . Trap . | . . . Miscellaneous . | . . . Route ------- -11/Scrapyard -10/Materials (discovered 5 exits: [*Mat x3] / [*Min x2]) -10/Mines (discovered 1 exit: [*Mat]) History --------- Turn | Location | Event 4 | -11/Scrapyard | Discovered new exit (range 15) 101 | -11/Scrapyard | Entered Materials 261 | -10/Materials | Discovered new exit (range 11) 313 | -10/Materials | Build established: Mutant 774 | -10/Materials | Discovered new exit (range 16) 1210 | -10/Materials | Discovered new exit (range 9) 1973 | -10/Materials | Discovered new exit (range 14) 2528 | -10/Materials | Discovered new exit (range 15) 2983 | -10/Materials | Entered Mines 2984 | -10/Mines | Assembled infested the area 3031 | -10/Mines | Assisted by bots powering up and referring to "LRC-V3" 3135 | -10/Mines | Learned location of Mines (-9) 3479 | -10/Mines | Discovered new exit (range 16) 3564 | -10/Mines | Core integrity fell below 50% 3591 | -10/Mines | Lost 3 allies 3606 | -10/Mines | Lost 3 parts (1p1n1w) 3651 | -10/Mines | Core integrity fell below 20% 3692 | -10/Mines | Lost 3 parts (1p1n1w) 3721 | -10/Mines | Destroyed by D-53 Grenadier with Mini Grenade Launcher Last Messages --------------- The unstable cave ceiling collapses. U-05 Engineer builds a Wall. The unstable cave ceiling collapses. U-05 Engineer builds a Door. The unstable cave ceiling collapses. U-05 Engineer builds a Door. U-05 Engineer lays Concrete. The unstable cave ceiling collapses. U-05 Engineer lays Concrete. U-05 Engineer builds a Wall. The unstable cave ceiling collapses. U-05 Engineer lays Concrete. The unstable cave ceiling collapses. U-05 Engineer builds a Wall. U-05 Engineer lays Concrete. The unstable cave ceiling collapses. U-05 Engineer lays Concrete. U-05 Engineer builds a Wall. Aluminum Leg destroyed. U-05 Engineer lays Concrete. Map ----- +----------------------------------------------------+ | | | | | | | | | | | ??????????????????????????????? | | ??????????????????????####????? | | #????????????????????## ##???? | | #??####?????????????# #???? | | ### ##????????????# #???? | | ############## ##??? | | # % < ##?? | | ## #?? | | ## #################% #?? | | ## #??????????##" # =%= ##? | | ##????????##"" |# ## | | ##???????# !! + # | | #???????##!! + # # | | ##??????# *# # # | | ######?## # # # | | #### u # | | % ####### # ## | | % #???# # ## #? | | ##???# ## | | ## ##????# # | | ##? #?????# @ # # | | % ##??? d ## | | ####??# #? | | # #?????########## #? | | ##% #??????????????## # ##? | | #### #???????????????#### #?? | | ???# #???????????????????###?? | | ??? ???????????????????????? | | ??? ??????????????????????? | | ??? ??????????????????????? | | ??? ??????????????????????? | | ??? ??????????????????????? | | ???? ???????????????????????? | | ??????????????????????????????? | | ??????????????????????????????? | | ??????????????????????????????? | | ??????????????????????????????? | | ??????????????????????????????? | | ??????????????????????????????? | | ??????????????????????????????? | | ??????????????????????????????? | | ??????????????????????????????? | | ??????????????????????????????? | | ??????????????????????????????? | | ??????????????????????????????? | +----------------------------------------------------+ Best States ------------- Heat Dissipation 25 Energy Generation 14 Energy Capacity 250 Matter Stores 300 Matter Capacity 300 Sight Range 16 Terrain Scan Density 10 Armor Coverage 150 Evasion (%) 50 Targeting Accuracy 5 Recoil Reduction 2 Item Schematics ----------------- None Robot Schematics ------------------ None Fabricated ------------ Nothing Alien Tech Used ----------------- None Achievements -------------- None Challenges ------------ None Game ------ Seed MetafiberSeismicDrive Manual? 0 Play Time 00:13:41 Cumulative 5.5 hours Start 2024.04.02 @ 09:18:21 End 2024.04.02 @ 09:31:47 Sessions 1 Manual Loads 0 Difficulty Rogue Special Mode None Game No. 16 Rogue 16 Adventurer 0 Explorer 0 Win Type - Total 0 Types 0/0/0/0/0/0/0/0/0 Lore% 7 Gallery% 10 Achievement% 9 Wizard Run 0 Options --------- Layout 1 ASCII 0 Keyboard 0 Movement Arrows Keybinds 0 Fullscreen 1 Font 24/Smallcaps Map View 50x35 Zoom Use 0% Tactical HUD 0 Map Filters NONE Filters NONE Steam 1 RUN: 3ffd108c-7b8b-4345-9785-fadb30b2b64e